[Event "Titled Tuesday Blitz February 15 Late 2022"]
[White "Zhurbinsky, David"]
[Black "Ladan, Nicholas"]
[WhiteFideId "2072904"]
[BlackFideId "30918855"]
[WhiteElo "2537"]
[BlackElo "2336"]
[Result "1-0"]
[Round "04"]
[TimeControl "180+1"]
[Date "2022.02.16"]
[WhiteClock "0:00:34"]
[BlackClock "0:00:14"]

1. e4 {[%clk 0:03:00]}  e5 {[%clk 0:02:57]} 2. Nf3 {[%clk 0:02:59]}  Nc6 {[%clk 0:02:57]} 3. Bb5 {[%clk 0:03:00]}  a6 {[%clk 0:02:56]} 4. Ba4 {[%clk 0:03:01]}  g6 {[%clk 0:02:57]} 5. O-O {[%clk 0:03:01]}  Bg7 {[%clk 0:02:56]} 6. c3 {[%clk 0:03:01]}  d6 {[%clk 0:02:54]} 7. h3 {[%clk 0:03:01]}  Nf6 {[%clk 0:02:51]} 8. d4 {[%clk 0:03:01]}  exd4 {[%clk 0:02:50]} 9. cxd4 {[%clk 0:03:02]}  b5 {[%clk 0:02:51]} 10. Bc2 {[%clk 0:03:01]}  O-O {[%clk 0:02:50]} 11. Bg5 {[%clk 0:02:57]}  h6 {[%clk 0:02:50]} 12. Be3 {[%clk 0:02:54]}  Re8 {[%clk 0:02:49]} 13. Nbd2 {[%clk 0:02:51]}  Nb4 {[%clk 0:02:47]} 14. Bb3 {[%clk 0:02:45]}  Bb7 {[%clk 0:02:14]} 15. a3 {[%clk 0:02:41]}  Nc6 {[%clk 0:02:07]} 16. Rc1 {[%clk 0:02:41]}  Na5 {[%clk 0:01:58]} 17. Bc2 {[%clk 0:02:32]}  c5 {[%clk 0:01:57]} 18. dxc5 {[%clk 0:02:23]}  dxc5 {[%clk 0:01:58]} 19. Bxc5 {[%clk 0:02:22]}  Nxe4 {[%clk 0:01:50]} 20. Nxe4 {[%clk 0:02:20]}  Qxd1 {[%clk 0:01:49]} 21. Rfxd1 {[%clk 0:02:17]}  Bxe4 {[%clk 0:01:49]} 22. Bxe4 {[%clk 0:02:15]}  Rxe4 {[%clk 0:01:49]} 23. b4 {[%clk 0:02:12]}  Nc4 {[%clk 0:01:47]} 24. Rd3 {[%clk 0:02:03]}  Bb2 {[%clk 0:01:43]} 25. Rcd1 {[%clk 0:01:56]}  Nxa3 {[%clk 0:01:31]} 26. Rd8+ {[%clk 0:01:45]}  Rxd8 {[%clk 0:01:30]} 27. Rxd8+ {[%clk 0:01:46]}  Kg7 {[%clk 0:01:30]} 28. Bf8+ {[%clk 0:01:30]}  Kf6 {[%clk 0:01:21]} 29. Bxh6 {[%clk 0:01:26]}  Rxb4 {[%clk 0:01:13]} 30. Rd6+ {[%clk 0:01:15]}  Ke7 {[%clk 0:01:10]} 31. Rxa6 {[%clk 0:01:14]}  Ra4 {[%clk 0:00:37]} 32. Rb6 {[%clk 0:01:09]}  b4 {[%clk 0:00:34]} 33. Rb7+ {[%clk 0:01:02]}  Kd6 {[%clk 0:00:28]} 34. Bf8+ {[%clk 0:00:56]}  Kc6 {[%clk 0:00:22]} 35. Rxb4 {[%clk 0:00:55]}  Rxb4 {[%clk 0:00:20]} 36. Bxb4 {[%clk 0:00:56]}  Nc2 {[%clk 0:00:19]} 37. Bd2 {[%clk 0:00:51]}  Nd4 {[%clk 0:00:18]} 38. Ne5+ {[%clk 0:00:51]}  Kd5 {[%clk 0:00:16]} 39. Nxf7 {[%clk 0:00:49]}  Ke4 {[%clk 0:00:12]} 40. Ng5+ {[%clk 0:00:46]}  Kd3 {[%clk 0:00:12]} 41. Be3 {[%clk 0:00:47]}  Nf5 {[%clk 0:00:12]} 42. Bf4 {[%clk 0:00:44]}  Ke2 {[%clk 0:00:12]} 43. Ne4 {[%clk 0:00:40]}  Bd4 {[%clk 0:00:11]} 44. Ng3+ {[%clk 0:00:40]}  Ke1 {[%clk 0:00:10]} 45. Nxf5 {[%clk 0:00:32]}  Bxf2+ {[%clk 0:00:09]} 46. Kh2 {[%clk 0:00:33]}  gxf5 {[%clk 0:00:09]} 47. Bg3 {[%clk 0:00:33]}  Ke2 {[%clk 0:00:06]} 48. Bxf2 {[%clk 0:00:33]}  Kxf2 {[%clk 0:00:07]} 49. h4 {[%clk 0:00:34]}  f4 {[%clk 0:00:04]} 50. h5 {[%clk 0:00:35]}  f3 {[%clk 0:00:04]} 51. gxf3 {[%clk 0:00:36]}  Kf1 {[%clk 0:00:04]} 52. h6 {[%clk 0:00:37]}  Kf2 {[%clk 0:00:05]} 53. h7 {[%clk 0:00:38]}  Kf1 {[%clk 0:00:06]} 54. h8=Q {[%clk 0:00:38]}  Kf2 {[%clk 0:00:06]} 55. Qb2+ {[%clk 0:00:38]}  Kf1 {[%clk 0:00:07]} 56. f4 {[%clk 0:00:37]}  Ke1 {[%clk 0:00:07]} 57. f5 {[%clk 0:00:37]}  Kd1 {[%clk 0:00:08]} 58. f6 {[%clk 0:00:38]}  Ke1 {[%clk 0:00:09]} 59. f7 {[%clk 0:00:38]}  Kd1 {[%clk 0:00:09]} 60. f8=Q {[%clk 0:00:38]}  Ke1 {[%clk 0:00:10]} 61. Kg2 {[%clk 0:00:38]}  Kd1 {[%clk 0:00:11]} 62. Kg1 {[%clk 0:00:34]}  Ke1 {[%clk 0:00:12]} 63. Qh6 {[%clk 0:00:34]}  Kd1 {[%clk 0:00:13]} 64. Qh1 {[%clk 0:00:34]}  Ke1 {[%clk 0:00:14]} 65. Kh2# {[%clk 0:00:34]} 1-0


[Site "https://www.chess.com"]

[Event "Titled Tuesday Blitz February 15 Late 2022"]
[White "Al Hosani, Omran"]
[Black "Pichot, Alan"]
[WhiteFideId "9308733"]
[BlackFideId "110973"]
[WhiteElo "2246"]
[BlackElo "2543"]
[Result "0-1"]
[Round "05"]
[TimeControl "180+1"]
[Date "2022.02.16"]
[WhiteClock "0:00:11"]
[BlackClock "0:00:11"]

1. e4 {[%clk 0:02:59]}  e5 {[%clk 0:02:59]} 2. Nf3 {[%clk 0:02:59]}  Nc6 {[%clk 0:02:59]} 3. Bb5 {[%clk 0:03:00]}  a6 {[%clk 0:02:56]} 4. Ba4 {[%clk 0:03:00]}  Nf6 {[%clk 0:02:57]} 5. O-O {[%clk 0:03:00]}  Be7 {[%clk 0:02:56]} 6. Re1 {[%clk 0:02:59]}  b5 {[%clk 0:02:54]} 7. Bb3 {[%clk 0:02:59]}  O-O {[%clk 0:02:55]} 8. h3 {[%clk 0:02:59]}  d6 {[%clk 0:02:51]} 9. d3 {[%clk 0:02:55]}  Na5 {[%clk 0:02:50]} 10. c3 {[%clk 0:02:52]}  Nxb3 {[%clk 0:02:50]} 11. axb3 {[%clk 0:02:52]}  Bb7 {[%clk 0:02:48]} 12. b4 {[%clk 0:02:52]}  Re8 {[%clk 0:02:34]} 13. Nbd2 {[%clk 0:02:52]}  Bf8 {[%clk 0:02:34]} 14. Nb3 {[%clk 0:02:52]}  Rb8 {[%clk 0:02:28]} 15. Be3 {[%clk 0:02:47]}  g6 {[%clk 0:02:13]} 16. Na5 {[%clk 0:02:18]}  Ba8 {[%clk 0:02:11]} 17. Nb3 {[%clk 0:02:14]}  Qc8 {[%clk 0:02:07]} 18. Ba7 {[%clk 0:02:12]}  Rb7 {[%clk 0:02:05]} 19. Be3 {[%clk 0:02:11]}  c6 {[%clk 0:01:42]} 20. Rxa6 {[%clk 0:02:09]}  d5 {[%clk 0:01:35]} 21. exd5 {[%clk 0:02:09]}  Nxd5 {[%clk 0:01:32]} 22. Bc5 {[%clk 0:02:09]}  Bg7 {[%clk 0:01:21]} 23. d4 {[%clk 0:01:52]}  e4 {[%clk 0:01:19]} 24. Nfd2 {[%clk 0:01:47]}  f5 {[%clk 0:01:15]} 25. Qa1 {[%clk 0:01:44]}  Rf7 {[%clk 0:01:14]} 26. c4 {[%clk 0:01:40]}  Nf4 {[%clk 0:01:06]} 27. Qa2 {[%clk 0:00:35]}  Bb7 {[%clk 0:00:50]} 28. Ra7 {[%clk 0:00:32]}  Nd3 {[%clk 0:00:49]} 29. Re3 {[%clk 0:00:28]}  Bh6 {[%clk 0:00:46]} 30. cxb5 {[%clk 0:00:23]}  Qe6 {[%clk 0:00:30]} 31. bxc6 {[%clk 0:00:19]}  Bxc6 {[%clk 0:00:30]} 32. Rxf7 {[%clk 0:00:18]}  Qxf7 {[%clk 0:00:31]} 33. Re2 {[%clk 0:00:14]}  Bxd2 {[%clk 0:00:26]} 34. Rxd2 {[%clk 0:00:15]}  Bd5 {[%clk 0:00:27]} 35. b5 {[%clk 0:00:05]}  Bxb3 {[%clk 0:00:27]} 36. Qa5 {[%clk 0:00:05]}  f4 {[%clk 0:00:26]} 37. b6 {[%clk 0:00:05]}  Bc4 {[%clk 0:00:20]} 38. b3 {[%clk 0:00:05]}  e3 {[%clk 0:00:19]} 39. fxe3 {[%clk 0:00:02]}  fxe3 {[%clk 0:00:20]} 40. Re2 {[%clk 0:00:02]}  Qf2+ {[%clk 0:00:10]} 41. Rxf2 {[%clk 0:00:02]}  exf2+ {[%clk 0:00:11]} 42. Kh2 {[%clk 0:00:03]}  f1=Q {[%clk 0:00:10]} 43. bxc4 {[%clk 0:00:03]}  Qf4+ {[%clk 0:00:08]} 44. Kg1 {[%clk 0:00:04]}  Re1+ {[%clk 0:00:06]} 45. Qxe1 {[%clk 0:00:03]}  Nxe1 {[%clk 0:00:07]} 46. b7 {[%clk 0:00:04]}  Qg3 {[%clk 0:00:06]} 47. Kf1 {[%clk 0:00:04]}  Qxg2+ {[%clk 0:00:06]} 48. Kxe1 {[%clk 0:00:04]}  Qxb7 {[%clk 0:00:07]} 49. Kd2 {[%clk 0:00:04]}  Qd7 {[%clk 0:00:07]} 50. Kc3 {[%clk 0:00:05]}  Qxh3+ {[%clk 0:00:07]} 51. Kb4 {[%clk 0:00:06]}  Kf7 {[%clk 0:00:07]} 52. d5 {[%clk 0:00:06]}  h5 {[%clk 0:00:07]} 53. Bd4 {[%clk 0:00:07]}  Qd7 {[%clk 0:00:07]} 54. c5 {[%clk 0:00:07]}  Qxd5 {[%clk 0:00:06]} 55. Bf2 {[%clk 0:00:07]}  h4 {[%clk 0:00:05]} 56. Bxh4 {[%clk 0:00:08]}  Qd4+ {[%clk 0:00:06]} 57. Ka5 {[%clk 0:00:08]}  Qxh4 {[%clk 0:00:07]} 58. c6 {[%clk 0:00:09]}  Qd8+ {[%clk 0:00:07]} 59. Ka6 {[%clk 0:00:08]}  Qc8+ {[%clk 0:00:08]} 60. Ka5 {[%clk 0:00:09]}  g5 {[%clk 0:00:09]} 61. c7 {[%clk 0:00:09]}  g4 {[%clk 0:00:09]} 62. Kb6 {[%clk 0:00:09]}  g3 {[%clk 0:00:10]} 63. Ka7 {[%clk 0:00:10]}  g2 {[%clk 0:00:11]} 64. Kb6 {[%clk 0:00:10]}  g1=Q+ {[%clk 0:00:12]} 65. Kb5 {[%clk 0:00:11]}  Qxc7 {[%clk 0:00:11]} 0-1


[Site "https://www.chess.com"]

[Event "Titled Tuesday Blitz February 15 Late 2022"]
[White "Al-Tarboush, Ward"]
[Black "Jaracz, Pawel"]
[WhiteFideId "7601450"]
[BlackFideId "1102222"]
[WhiteElo "2276"]
[BlackElo "2429"]
[Result "0-1"]
[Round "05"]
[TimeControl "180+1"]
[Date "2022.02.15"]
[WhiteClock "0:00:01"]
[BlackClock "0:00:12"]

1. d4 {[%clk 0:03:00]}  Nf6 {[%clk 0:02:59]} 2. Nf3 {[%clk 0:03:01]}  d5 {[%clk 0:02:59]} 3. Nc3 {[%clk 0:03:01]}  c6 {[%clk 0:02:52]} 4. Bg5 {[%clk 0:03:01]}  Qb6 {[%clk 0:02:50]} 5. Qc1 {[%clk 0:03:00]}  Bf5 {[%clk 0:02:49]} 6. e3 {[%clk 0:02:58]}  Nbd7 {[%clk 0:02:48]} 7. Bd3 {[%clk 0:02:58]}  Bxd3 {[%clk 0:02:42]} 8. cxd3 {[%clk 0:02:59]}  e6 {[%clk 0:02:43]} 9. O-O {[%clk 0:02:59]}  Be7 {[%clk 0:02:43]} 10. Ne5 {[%clk 0:02:58]}  Bd6 {[%clk 0:02:24]} 11. f4 {[%clk 0:02:57]}  Rc8 {[%clk 0:02:10]} 12. Qd2 {[%clk 0:02:57]}  O-O {[%clk 0:01:57]} 13. Rae1 {[%clk 0:02:52]}  c5 {[%clk 0:01:50]} 14. dxc5 {[%clk 0:02:43]}  Bxc5 {[%clk 0:01:44]} 15. Na4 {[%clk 0:02:42]}  Qb4 {[%clk 0:01:42]} 16. Qd1 {[%clk 0:02:06]}  b5 {[%clk 0:01:20]} 17. Nxc5 {[%clk 0:02:04]}  Qxc5 {[%clk 0:01:21]} 18. Kh1 {[%clk 0:02:03]}  Qc2 {[%clk 0:01:18]} 19. Re2 {[%clk 0:02:00]}  Qxd1 {[%clk 0:01:18]} 20. Rxd1 {[%clk 0:02:01]}  Nxe5 {[%clk 0:01:18]} 21. fxe5 {[%clk 0:01:59]}  Nd7 {[%clk 0:01:10]} 22. Be7 {[%clk 0:01:59]}  Rfe8 {[%clk 0:01:08]} 23. Bd6 {[%clk 0:01:59]}  Rc6 {[%clk 0:01:07]} 24. d4 {[%clk 0:01:56]}  Rec8 {[%clk 0:01:04]} 25. h3 {[%clk 0:01:54]}  f6 {[%clk 0:00:54]} 26. e4 {[%clk 0:01:49]}  dxe4 {[%clk 0:00:48]} 27. Rxe4 {[%clk 0:01:50]}  Rc1 {[%clk 0:00:48]} 28. Rxc1 {[%clk 0:01:48]}  Rxc1+ {[%clk 0:00:49]} 29. Kh2 {[%clk 0:01:48]}  f5 {[%clk 0:00:48]} 30. Re2 {[%clk 0:01:46]}  Nb6 {[%clk 0:00:45]} 31. Bc5 {[%clk 0:01:45]}  Nd5 {[%clk 0:00:43]} 32. Bxa7 {[%clk 0:01:31]}  g5 {[%clk 0:00:43]} 33. b3 {[%clk 0:01:23]}  b4 {[%clk 0:00:43]} 34. Bc5 {[%clk 0:01:20]}  f4 {[%clk 0:00:39]} 35. g3 {[%clk 0:00:47]}  Kf7 {[%clk 0:00:20]} 36. gxf4 {[%clk 0:00:40]}  gxf4 {[%clk 0:00:21]} 37. Rg2 {[%clk 0:00:26]}  Rc3 {[%clk 0:00:13]} 38. h4 {[%clk 0:00:09]}  h5 {[%clk 0:00:13]} 39. Rf2 {[%clk 0:00:08]}  Kg6 {[%clk 0:00:13]} 40. Kg2 {[%clk 0:00:03]}  Kf5 {[%clk 0:00:13]} 41. Rf3 {[%clk 0:00:02]}  Ne3+ {[%clk 0:00:13]} 42. Kf2 {[%clk 0:00:02]}  Ke4 {[%clk 0:00:12]} 43. Ke2 {[%clk 0:00:01]}  Rc2+ {[%clk 0:00:12]} 0-1


[Site "https://www.chess.com"]

[Event "Titled Tuesday Blitz February 15 Late 2022"]
[White "Araujo Filho, Luiz Antonio Coel"]
[Black "Desideri, Ricardo Maruchi"]
[WhiteFideId "2130661"]
[BlackFideId "2110440"]
[WhiteElo "2200"]
[BlackElo "1945"]
[Result "1-0"]
[Round "05"]
[TimeControl "180+1"]
[Date "2022.02.16"]
[WhiteClock "0:00:51"]
[BlackClock "0:00:07"]

1. d4 {[%clk 0:03:00]}  Nf6 {[%clk 0:02:49]} 2. Nf3 {[%clk 0:03:01]}  d6 {[%clk 0:02:48]} 3. c4 {[%clk 0:03:00]}  c5 {[%clk 0:02:46]} 4. d5 {[%clk 0:02:58]}  g6 {[%clk 0:02:45]} 5. Nc3 {[%clk 0:02:58]}  Bg7 {[%clk 0:02:46]} 6. e4 {[%clk 0:02:59]}  Bg4 {[%clk 0:02:44]} 7. Be2 {[%clk 0:02:59]}  Bxf3 {[%clk 0:02:42]} 8. Bxf3 {[%clk 0:02:59]}  e6 {[%clk 0:02:43]} 9. O-O {[%clk 0:02:59]}  exd5 {[%clk 0:02:42]} 10. exd5 {[%clk 0:02:59]}  O-O {[%clk 0:02:40]} 11. Bg5 {[%clk 0:02:59]}  Nbd7 {[%clk 0:02:38]} 12. Re1 {[%clk 0:02:59]}  a6 {[%clk 0:02:37]} 13. a4 {[%clk 0:02:58]}  Re8 {[%clk 0:02:36]} 14. Qc2 {[%clk 0:02:57]}  Qc7 {[%clk 0:02:29]} 15. h3 {[%clk 0:02:42]}  Ne5 {[%clk 0:02:29]} 16. Be2 {[%clk 0:02:40]}  Re7 {[%clk 0:02:18]} 17. Bf1 {[%clk 0:02:37]}  Rae8 {[%clk 0:02:17]} 18. Reb1 {[%clk 0:02:37]}  h6 {[%clk 0:02:11]} 19. Bh4 {[%clk 0:02:37]}  g5 {[%clk 0:02:11]} 20. Bg3 {[%clk 0:02:37]}  Nh5 {[%clk 0:02:10]} 21. Bh2 {[%clk 0:02:37]}  Nf4 {[%clk 0:02:04]} 22. Bxf4 {[%clk 0:02:05]}  gxf4 {[%clk 0:02:03]} 23. Qf5 {[%clk 0:02:04]}  f3 {[%clk 0:02:01]} 24. g4 {[%clk 0:02:04]}  Qd7 {[%clk 0:01:28]} 25. Qf4 {[%clk 0:01:37]}  f5 {[%clk 0:01:05]} 26. Qxf5 {[%clk 0:01:32]}  Qxf5 {[%clk 0:01:03]} 27. gxf5 {[%clk 0:01:33]}  Rf7 {[%clk 0:01:03]} 28. Re1 {[%clk 0:01:29]}  Rxf5 {[%clk 0:01:00]} 29. Ne4 {[%clk 0:01:28]}  Ref8 {[%clk 0:00:48]} 30. Nxd6 {[%clk 0:01:26]}  Rg5+ {[%clk 0:00:47]} 31. Kh1 {[%clk 0:01:23]}  Kh7 {[%clk 0:00:33]} 32. Ne4 {[%clk 0:01:18]}  Rg6 {[%clk 0:00:30]} 33. Nxc5 {[%clk 0:01:14]}  Rg8 {[%clk 0:00:27]} 34. Rxe5 {[%clk 0:01:09]}  Bxe5 {[%clk 0:00:26]} 35. Bd3 {[%clk 0:01:09]}  Kh8 {[%clk 0:00:22]} 36. Bxg6 {[%clk 0:01:07]}  Rxg6 {[%clk 0:00:22]} 37. Rg1 {[%clk 0:01:05]}  Rxg1+ {[%clk 0:00:18]} 38. Kxg1 {[%clk 0:01:05]}  Bxb2 {[%clk 0:00:18]} 39. Nxb7 {[%clk 0:01:03]}  Kg7 {[%clk 0:00:17]} 40. c5 {[%clk 0:01:03]}  Kf7 {[%clk 0:00:16]} 41. c6 {[%clk 0:01:03]}  Be5 {[%clk 0:00:13]} 42. Nc5 {[%clk 0:00:58]}  Bd6 {[%clk 0:00:11]} 43. Nxa6 {[%clk 0:00:58]}  Ke7 {[%clk 0:00:11]} 44. Kf1 {[%clk 0:00:54]}  Kd8 {[%clk 0:00:11]} 45. Ke1 {[%clk 0:00:53]}  Kc8 {[%clk 0:00:12]} 46. Kd1 {[%clk 0:00:51]}  h5 {[%clk 0:00:09]} 47. Kd2 {[%clk 0:00:51]}  Bf4+ {[%clk 0:00:08]} 48. Kd3 {[%clk 0:00:52]}  Bg3 {[%clk 0:00:07]} 49. fxg3 {[%clk 0:00:51]} 1-0


[Site "https://www.chess.com"]

[Event "Titled Tuesday Blitz February 15 Late 2022"]
[White "Brunner, Nicolas"]
[Black "Foisor, Sabina-Francesca"]
[WhiteFideId "620246"]
[BlackFideId "1212915"]
[WhiteElo "2372"]
[BlackElo "2243"]
[Result "1-0"]
[Round "05"]
[TimeControl "180+1"]
[Date "2022.02.16"]
[WhiteClock "0:00:22"]
[BlackClock "0:00:08"]

1. d4 {[%clk 0:03:00]}  d5 {[%clk 0:02:57]} 2. c4 {[%clk 0:03:00]}  e6 {[%clk 0:02:55]} 3. Nf3 {[%clk 0:02:59]}  Nf6 {[%clk 0:02:53]} 4. g3 {[%clk 0:02:59]}  Be7 {[%clk 0:02:52]} 5. Bg2 {[%clk 0:02:58]}  O-O {[%clk 0:02:52]} 6. O-O {[%clk 0:02:58]}  c6 {[%clk 0:02:50]} 7. Qc2 {[%clk 0:02:57]}  b6 {[%clk 0:02:49]} 8. Nbd2 {[%clk 0:02:55]}  Bb7 {[%clk 0:02:50]} 9. e4 {[%clk 0:02:46]}  Na6 {[%clk 0:02:48]} 10. a3 {[%clk 0:02:42]}  Rc8 {[%clk 0:02:47]} 11. b4 {[%clk 0:02:13]}  c5 {[%clk 0:02:31]} 12. dxc5 {[%clk 0:02:08]}  bxc5 {[%clk 0:02:32]} 13. b5 {[%clk 0:02:08]}  Nc7 {[%clk 0:02:25]} 14. exd5 {[%clk 0:02:02]}  exd5 {[%clk 0:02:24]} 15. a4 {[%clk 0:02:02]}  d4 {[%clk 0:02:13]} 16. Re1 {[%clk 0:01:57]}  Ne6 {[%clk 0:02:09]} 17. Ne5 {[%clk 0:01:52]}  Bxg2 {[%clk 0:02:06]} 18. Kxg2 {[%clk 0:01:52]}  Bd6 {[%clk 0:01:46]} 19. Nc6 {[%clk 0:01:51]}  Qc7 {[%clk 0:01:45]} 20. Nf3 {[%clk 0:01:41]}  Rcd8 {[%clk 0:01:22]} 21. Qd3 {[%clk 0:01:35]}  Rde8 {[%clk 0:01:11]} 22. Bd2 {[%clk 0:01:35]}  h6 {[%clk 0:01:02]} 23. a5 {[%clk 0:01:34]}  Nd8 {[%clk 0:00:59]} 24. Nxd8 {[%clk 0:01:25]}  Qxd8 {[%clk 0:00:57]} 25. a6 {[%clk 0:01:23]}  Bc7 {[%clk 0:00:53]} 26. Nh4 {[%clk 0:01:20]}  Qa8+ {[%clk 0:00:46]} 27. Qf3 {[%clk 0:01:19]}  Bb6 {[%clk 0:00:44]} 28. Qxa8 {[%clk 0:01:14]}  Rxa8 {[%clk 0:00:45]} 29. Nf5 {[%clk 0:01:13]}  Rfe8 {[%clk 0:00:42]} 30. Ne7+ {[%clk 0:01:12]}  Kf8 {[%clk 0:00:42]} 31. Nc6 {[%clk 0:01:12]}  Rxe1 {[%clk 0:00:38]} 32. Rxe1 {[%clk 0:01:11]}  Re8 {[%clk 0:00:39]} 33. Rxe8+ {[%clk 0:00:55]}  Kxe8 {[%clk 0:00:40]} 34. Kf3 {[%clk 0:00:55]}  Kd7 {[%clk 0:00:36]} 35. Bf4 {[%clk 0:00:55]}  Ne8 {[%clk 0:00:27]} 36. Ke4 {[%clk 0:00:51]}  Ke6 {[%clk 0:00:18]} 37. Bb8 {[%clk 0:00:48]}  Nd6+ {[%clk 0:00:18]} 38. Bxd6 {[%clk 0:00:36]}  Kxd6 {[%clk 0:00:19]} 39. g4 {[%clk 0:00:29]}  g6 {[%clk 0:00:19]} 40. f4 {[%clk 0:00:28]}  Ke6 {[%clk 0:00:17]} 41. f5+ {[%clk 0:00:25]}  Kd6 {[%clk 0:00:17]} 42. fxg6 {[%clk 0:00:23]}  fxg6 {[%clk 0:00:18]} 43. Ne5 {[%clk 0:00:24]}  g5 {[%clk 0:00:15]} 44. Nf7+ {[%clk 0:00:24]}  Ke6 {[%clk 0:00:14]} 45. Nxh6 {[%clk 0:00:24]}  Bc7 {[%clk 0:00:14]} 46. h3 {[%clk 0:00:23]}  Kf6 {[%clk 0:00:10]} 47. Nf5 {[%clk 0:00:23]}  Bb6 {[%clk 0:00:10]} 48. Nd6 {[%clk 0:00:22]}  Bc7 {[%clk 0:00:08]} 49. Ne8+ {[%clk 0:00:22]} 1-0


[Site "https://www.chess.com"]

[Event "Titled Tuesday Blitz February 15 Late 2022"]
[White "Chigaev, Maksim"]
[Black "Papasimakopoulos, Alexandros"]
[WhiteFideId "4108116"]
[BlackFideId "4244125"]
[WhiteElo "2502"]
[BlackElo "2340"]
[Result "1-0"]
[Round "05"]
[TimeControl "180+1"]
[Date "2022.02.15"]
[WhiteClock "0:00:09"]
[BlackClock "0:00:15"]

1. e4 {[%clk 0:03:00]}  e6 {[%clk 0:03:00]} 2. d4 {[%clk 0:02:56]}  d5 {[%clk 0:03:00]} 3. Nc3 {[%clk 0:02:56]}  Bb4 {[%clk 0:03:00]} 4. exd5 {[%clk 0:02:54]}  exd5 {[%clk 0:03:00]} 5. Bd3 {[%clk 0:02:55]}  Nc6 {[%clk 0:03:00]} 6. a3 {[%clk 0:02:55]}  Bxc3+ {[%clk 0:03:00]} 7. bxc3 {[%clk 0:02:55]}  Nf6 {[%clk 0:03:01]} 8. Nf3 {[%clk 0:02:51]}  Bg4 {[%clk 0:02:59]} 9. O-O {[%clk 0:02:50]}  O-O {[%clk 0:03:00]} 10. h3 {[%clk 0:02:51]}  Bh5 {[%clk 0:03:00]} 11. Bf4 {[%clk 0:02:45]}  Re8 {[%clk 0:02:58]} 12. Rb1 {[%clk 0:02:43]}  Rb8 {[%clk 0:02:34]} 13. g4 {[%clk 0:02:23]}  Bg6 {[%clk 0:02:33]} 14. Ne5 {[%clk 0:02:11]}  Nxe5 {[%clk 0:02:32]} 15. dxe5 {[%clk 0:02:09]}  Ne4 {[%clk 0:02:27]} 16. Bxe4 {[%clk 0:02:03]}  Bxe4 {[%clk 0:02:24]} 17. f3 {[%clk 0:02:02]}  Bg6 {[%clk 0:02:24]} 18. Kg2 {[%clk 0:01:46]}  Re6 {[%clk 0:02:19]} 19. Rf2 {[%clk 0:01:44]}  f6 {[%clk 0:01:46]} 20. exf6 {[%clk 0:01:39]}  Qxf6 {[%clk 0:01:44]} 21. Bxc7 {[%clk 0:01:32]}  Rc8 {[%clk 0:01:44]} 22. Bg3 {[%clk 0:01:14]}  b6 {[%clk 0:01:39]} 23. Qxd5 {[%clk 0:01:12]}  Bf7 {[%clk 0:01:39]} 24. Qb7 {[%clk 0:01:03]}  Rxc3 {[%clk 0:01:35]} 25. Qxa7 {[%clk 0:00:56]}  h5 {[%clk 0:01:35]} 26. Qb8+ {[%clk 0:00:45]}  Kh7 {[%clk 0:01:30]} 27. Qf4 {[%clk 0:00:34]}  Qxf4 {[%clk 0:01:27]} 28. Bxf4 {[%clk 0:00:34]}  Rxa3 {[%clk 0:01:23]} 29. Rb5 {[%clk 0:00:35]}  hxg4 {[%clk 0:01:17]} 30. hxg4 {[%clk 0:00:35]}  Rc6 {[%clk 0:01:12]} 31. Be5 {[%clk 0:00:25]}  Bc4 {[%clk 0:01:08]} 32. Rb1 {[%clk 0:00:20]}  Bd5 {[%clk 0:01:00]} 33. c3 {[%clk 0:00:16]}  Ra4 {[%clk 0:00:52]} 34. Kg3 {[%clk 0:00:16]}  Re6 {[%clk 0:00:51]} 35. Bd4 {[%clk 0:00:15]}  Ra6 {[%clk 0:00:47]} 36. Rh1+ {[%clk 0:00:15]}  Kg8 {[%clk 0:00:44]} 37. Rh5 {[%clk 0:00:15]}  Bc4 {[%clk 0:00:40]} 38. Rfh2 {[%clk 0:00:13]}  b5 {[%clk 0:00:38]} 39. Rh8+ {[%clk 0:00:12]}  Kf7 {[%clk 0:00:39]} 40. R2h7 {[%clk 0:00:11]}  Rg6 {[%clk 0:00:37]} 41. Rb8 {[%clk 0:00:09]}  Rae6 {[%clk 0:00:26]} 42. Rb7+ {[%clk 0:00:09]}  Kf8 {[%clk 0:00:15]} 43. Rh8# {[%clk 0:00:09]} 1-0


[Site "https://www.chess.com"]

[Event "Titled Tuesday Blitz February 15 Late 2022"]
[White "Corrales Jimenez, Fidel"]
[Black "Jakubowski, Krzysztof"]
[WhiteFideId "3506690"]
[BlackFideId "1112848"]
[WhiteElo "2541"]
[BlackElo "2365"]
[Result "1-0"]
[Round "05"]
[TimeControl "180+1"]
[Date "2022.02.15"]
[WhiteClock "0:00:13"]
[BlackClock "0:00:01"]

1. d4 {[%clk 0:02:50]}  Nf6 {[%clk 0:02:58]} 2. c4 {[%clk 0:02:33]}  e6 {[%clk 0:02:54]} 3. Nc3 {[%clk 0:02:32]}  Bb4 {[%clk 0:02:52]} 4. a3 {[%clk 0:02:33]}  Bxc3+ {[%clk 0:02:51]} 5. bxc3 {[%clk 0:02:34]}  d5 {[%clk 0:02:44]} 6. f3 {[%clk 0:02:28]}  c5 {[%clk 0:02:40]} 7. cxd5 {[%clk 0:02:28]}  exd5 {[%clk 0:02:39]} 8. e3 {[%clk 0:02:27]}  c4 {[%clk 0:02:37]} 9. Ne2 {[%clk 0:02:22]}  Nc6 {[%clk 0:02:36]} 10. Ng3 {[%clk 0:02:17]}  O-O {[%clk 0:02:28]} 11. Be2 {[%clk 0:02:13]}  Na5 {[%clk 0:02:27]} 12. O-O {[%clk 0:02:08]}  Nb3 {[%clk 0:02:25]} 13. Ra2 {[%clk 0:02:08]}  a5 {[%clk 0:02:05]} 14. e4 {[%clk 0:02:08]}  b5 {[%clk 0:02:03]} 15. Bg5 {[%clk 0:02:06]}  h6 {[%clk 0:01:58]} 16. Bxf6 {[%clk 0:02:00]}  Qxf6 {[%clk 0:01:58]} 17. e5 {[%clk 0:02:00]}  Qf4 {[%clk 0:01:52]} 18. Kh1 {[%clk 0:01:51]}  Rb8 {[%clk 0:01:37]} 19. Nh5 {[%clk 0:01:37]}  Qe3 {[%clk 0:01:34]} 20. Qe1 {[%clk 0:01:37]}  Bf5 {[%clk 0:01:23]} 21. f4 {[%clk 0:01:31]}  b4 {[%clk 0:01:17]} 22. Rf3 {[%clk 0:01:22]}  Qc1 {[%clk 0:01:13]} 23. Bd1 {[%clk 0:01:18]}  Bg4 {[%clk 0:00:59]} 24. Rc2 {[%clk 0:00:56]}  Qb1 {[%clk 0:00:52]} 25. Nf6+ {[%clk 0:00:46]}  gxf6 {[%clk 0:00:47]} 26. Rg3 {[%clk 0:00:46]}  f5 {[%clk 0:00:40]} 27. h3 {[%clk 0:00:46]}  h5 {[%clk 0:00:37]} 28. hxg4 {[%clk 0:00:31]}  hxg4 {[%clk 0:00:36]} 29. Kh2 {[%clk 0:00:30]}  Rb6 {[%clk 0:00:35]} 30. axb4 {[%clk 0:00:22]}  Rh6+ {[%clk 0:00:32]} 31. Kg1 {[%clk 0:00:22]}  axb4 {[%clk 0:00:32]} 32. Kf2 {[%clk 0:00:18]}  Ra8 {[%clk 0:00:28]} 33. Re2 {[%clk 0:00:13]}  bxc3 {[%clk 0:00:21]} 34. e6 {[%clk 0:00:13]}  fxe6 {[%clk 0:00:17]} 35. Rxe6 {[%clk 0:00:14]}  Ra2+ {[%clk 0:00:17]} 36. Re2 {[%clk 0:00:14]}  Rxe2+ {[%clk 0:00:15]} 37. Qxe2 {[%clk 0:00:15]}  Qe4 {[%clk 0:00:15]} 38. Qxe4 {[%clk 0:00:14]}  dxe4 {[%clk 0:00:13]} 39. Rxc3 {[%clk 0:00:14]}  Nxd4 {[%clk 0:00:07]} 40. Rxc4 {[%clk 0:00:14]}  Ne6 {[%clk 0:00:07]} 41. Bb3 {[%clk 0:00:15]}  Kg7 {[%clk 0:00:07]} 42. Kg3 {[%clk 0:00:14]}  Nf8 {[%clk 0:00:04]} 43. Rc7+ {[%clk 0:00:14]}  Kg6 {[%clk 0:00:04]} 44. Rc5 {[%clk 0:00:14]}  Rh1 {[%clk 0:00:01]} 45. Ba4 {[%clk 0:00:13]}  Nh7 {[%clk 0:00:01]} 46. Be8+ {[%clk 0:00:12]}  Kf6 {[%clk 0:00:01]} 47. Bd7 {[%clk 0:00:13]} 1-0


[Site "https://www.chess.com"]